fUST/lending_fUST_20250902
["ID","MTS","AMOUNT","RATE_DAILY","PERIOD"]
[383043025,1756825835599,-480.0,0.00013698,2]
[383043026,1756825835608,-480.0,0.00013698,2]
[383043027,1756825835618,-151.0,0.00013698,2]
[383043028,1756825835628,-151.0,0.00013698,2]
[383043029,1756825835637,-151.0,0.00013698,2]
[383043030,1756825835647,-480.0,0.00013698,2]
[383043031,1756825835657,-151.0,0.00013698,2]
[383043032,1756825835670,-480.0,0.00013698,2]
[383043033,1756825835679,-480.0,0.00013698,2]
[383043034,1756825835689,-480.0,0.00013698,2]
[383043035,1756825835698,-480.0,0.00013698,2]
[383043036,1756825835709,-480.0,0.00013698,2]
[383043037,1756825835718,-480.0,0.00013698,2]
[383043038,1756825835728,-480.0,0.00013698,2]
[383043039,1756825835738,-480.0,0.00013698,2]
[383043040,1756825835748,-480.0,0.00013698,2]
[383043041,1756825835757,-550.98,0.00013698,2]
[383043042,1756825835767,-480.0,0.00013698,2]
[383043043,1756825835777,-480.0,0.00013698,2]
[383043044,1756825835787,-480.0,0.00013698,2]
[383043045,1756825835797,-480.0,0.00013698,2]
[383043046,1756825835807,-480.0,0.00013698,2]
[383043047,1756825835817,-480.0,0.00013698,2]
[383043048,1756825835826,-480.0,0.00013698,2]
[383043049,1756825835836,-480.0,0.00013698,2]
[383043050,1756825835845,-480.0,0.00013698,2]
[383043051,1756825835855,-480.0,0.00013698,2]
[383043052,1756825835864,-480.0,0.00013698,2]
[383043053,1756825835873,-480.0,0.00013698,2]
[383043054,1756825835883,-151.0,0.00013698,2]
[383043055,1756825835892,-480.0,0.00013698,2]
[383043056,1756825835902,-480.0,0.00013698,2]
[383043057,1756825835915,-188.978242,0.00013698,2]
[383043058,1756825835924,-500.0,0.00013698,2]
[383043059,1756825835933,-788.552014,0.00013699,2]
[383043060,1756825835943,-195.50137691,0.00013872,2]
[383043061,1756825835952,-500.0,0.00013971,2]
[383043062,1756825835962,-500.0,0.00013971,2]
[383043063,1756825835971,-480.0,0.00013972,2]
[383043064,1756825835980,-436.14,0.00013972,2]
[383043065,1756825835990,-480.0,0.00013972,2]
[383043066,1756825836000,-480.0,0.00013972,2]
[383043067,1756825836012,-480.0,0.00013972,2]
[383043068,1756825836022,-480.0,0.00013972,2]
[383043069,1756825836032,-157.66,0.00013972,2]
[383043070,1756825836042,-480.0,0.00013972,2]
[383043071,1756825836052,-480.0,0.00013972,2]
[383043072,1756825836061,-480.0,0.00013972,2]
[383043073,1756825836071,-368.34,0.00013972,2]
[383043074,1756825836082,-480.0,0.00013972,2]
[383043075,1756825836091,-480.0,0.00013972,2]
[383043076,1756825836101,-480.0,0.00013972,2]
[383043077,1756825836110,-480.0,0.00013972,2]
[383043078,1756825836120,-480.0,0.00013972,2]
[383043079,1756825836129,-480.0,0.00013972,2]
[383043080,1756825836139,-480.0,0.00013972,2]
[383043081,1756825836149,-480.0,0.00013972,2]
[383043082,1756825836161,-480.0,0.00013972,2]
[383043083,1756825836171,-558.97,0.00013972,2]
[383043084,1756825836181,-480.0,0.00013972,2]
[383043085,1756825836191,-480.0,0.00013972,2]
[383043086,1756825836201,-480.0,0.00013972,2]
[383043087,1756825836210,-480.0,0.00013972,2]
[383043088,1756825836220,-480.0,0.00013972,2]
[383043089,1756825836230,-480.0,0.00013972,2]
[383043090,1756825836239,-480.0,0.00013972,2]
[383043091,1756825836249,-480.0,0.00013972,2]
[383043092,1756825836258,-151.295097,0.00013972,2]
[383043093,1756825836268,-480.0,0.00013972,2]
[383043094,1756825836277,-273.39,0.00013972,2]
[383043095,1756825836287,-240.66,0.00013972,2]
[383043096,1756825836296,-283.49,0.00013972,2]
[383043097,1756825836305,-480.0,0.00013972,2]
[383043098,1756825836315,-480.0,0.00013972,2]
[383043099,1756825836325,-480.0,0.00013972,2]
[383043100,1756825836334,-270.42,0.00013972,2]
[383043101,1756825836344,-480.0,0.00013972,2]
[383043102,1756825836353,-480.0,0.00013972,2]
[383043103,1756825836363,-480.0,0.00013972,2]
[383043104,1756825836372,-480.0,0.00013972,2]
[383043105,1756825836382,-480.0,0.00013972,2]
[383043106,1756825836391,-480.0,0.00013972,2]
[383043107,1756825836401,-480.0,0.00013972,2]
[383043108,1756825836412,-480.0,0.00013972,2]
[383043109,1756825836421,-480.0,0.00013972,2]
[383043110,1756825836431,-480.0,0.00013972,2]
[383043111,1756825836441,-480.0,0.00013972,2]
[383043112,1756825836451,-823.73,0.00013972,2]
[383043113,1756825836460,-480.0,0.00013972,2]
[383043114,1756825836470,-480.0,0.00013972,2]
[383043115,1756825836482,-485.32,0.00013972,2]
[383043116,1756825836493,-480.0,0.00013972,2]
[383043117,1756825836504,-480.0,0.00013972,2]
[383043118,1756825836516,-480.0,0.00013972,2]
[383043119,1756825836527,-480.0,0.00013972,2]
[383043120,1756825836537,-480.0,0.00013972,2]
[383043121,1756825836547,-480.0,0.00013972,2]
[383043122,1756825836557,-480.0,0.00013972,2]
[383043123,1756825836566,-494.03,0.00013972,2]
[383043124,1756825836575,-480.0,0.00013972,2]
[383043125,1756825836585,-480.0,0.00013972,2]
[383043126,1756825836595,-480.0,0.00013972,2]
[383043127,1756825836604,-803.62,0.00013972,2]
[383043128,1756825836614,-480.0,0.00013972,2]
[383043129,1756825836623,-480.0,0.00013972,2]
[383043130,1756825836633,-630.49,0.00013972,2]
[383043131,1756825836643,-480.0,0.00013972,2]
[383043132,1756825836654,-480.0,0.00013972,2]
[383043133,1756825836666,-480.0,0.00013972,2]
[383043134,1756825836676,-480.0,0.00013972,2]
[383043135,1756825836685,-480.0,0.00013972,2]
[383043136,1756825836695,-527.6,0.00013972,2]
[383043137,1756825836705,-34.38075293,0.00013972,2]
[383043155,1756825838232,-314.40756889,0.00013698,2]
[383043156,1756825838242,-480.0,0.00013698,2]
[383043157,1756825838252,-445.61924707,0.00013972,2]
[383043158,1756825838263,-917.25,0.00013972,2]
[383043159,1756825838272,-294.17,0.00013972,2]
[383043160,1756825838282,-480.0,0.00013972,2]
[383043161,1756825838291,-480.0,0.00013972,2]
[383043162,1756825838301,-480.0,0.00013972,2]
[383043163,1756825838310,-444.09,0.00013972,2]
[383043164,1756825838320,-480.0,0.00013972,2]
[383043165,1756825838329,-480.0,0.00013972,2]
[383043166,1756825838339,-262.37190384,0.00013972,2]
[383043179,1756825843361,-420.73348553,0.00013697,2]
[383043180,1756825843373,-79.26651447,0.00013697,2]
[383043181,1756825843383,-197.00137527,0.00013697,2]
[383043182,1756825843392,-377.19422067,0.00013698,2]
[383043183,1756825843402,-480.0,0.00013698,2]
[383043184,1756825843415,-217.62809616,0.00013972,2]
[383043185,1756825843425,-395.05,0.00013972,2]
[383043186,1756825843435,-151.0,0.00013972,2]
[383043187,1756825843444,-151.0,0.00013972,2]
[383043188,1756825843453,-151.0,0.00013972,2]
[383043189,1756825843462,-151.0,0.00013972,2]
[383043190,1756825843472,-480.0,0.00013972,2]
[383043191,1756825843483,-480.0,0.00013972,2]
[383043192,1756825843493,-480.0,0.00013972,2]
[383043193,1756825843503,-480.0,0.00013972,2]
[383043194,1756825843512,-480.0,0.00013972,2]
[383043195,1756825843523,-480.0,0.00013972,2]
[383043196,1756825843533,-480.0,0.00013972,2]
[383043197,1756825843545,-480.0,0.00013972,2]
[383043198,1756825843555,-480.0,0.00013972,2]
[383043199,1756825843564,-480.0,0.00013972,2]
[383043200,1756825843574,-480.0,0.00013972,2]
[383043201,1756825843583,-480.0,0.00013972,2]
[383043202,1756825843593,-480.0,0.00013972,2]
[383043203,1756825843602,-480.0,0.00013972,2]
[383043204,1756825843611,-151.0,0.00013972,2]
[383043205,1756825843621,-480.0,0.00013972,2]
[383043206,1756825843631,-480.0,0.00013972,2]
[383043207,1756825843641,-500.0,0.00013972,2]
[383043208,1756825843651,-500.0,0.00014046,2]
[383043209,1756825843662,-1429.00229427,0.00014047,2]
[383043210,1756825843674,-327.8600994,0.00014047,2]
[383043239,1756825846351,-6014.11287894,0.00014047,2]
[383043247,1756825846509,-2549.68963878,0.00014047,2]
[383043248,1756825846521,-703.1,0.00014047,2]
[383043249,1756825846533,-1223.26117838,0.00014047,2]
[383043250,1756826231385,160.0,0.00021085,30]
[383043251,1756826343391,300.0,0.00013696,2]
[383043252,1756826402816,1200.0,0.00013696,2]
[383043253,1756826750796,9430.33807618,0.00025,30]
[383043256,1756826844133,-300.0,0.00013697,2]
[383043257,1756826844153,-1200.0,0.00013697,2]
[383043258,1756826844174,-151.44099722,0.00013698,2]
[383043259,1756826855425,148500.0,0.000135,2]
[383043292,1756827032378,-376.14580871,0.000135,2]
[383043302,1756827032671,-14772.33013776,0.000135,2]
[383043303,1756827032682,-513.69,0.00013698,2]
[383043304,1756827032691,-59.69964321,0.00013698,2]
[383043351,1756827039674,-189.82035679,0.00013698,2]
[383043352,1756827039685,-334.99,0.00013698,2]
[383043353,1756827039695,-500.0,0.00013698,2]
[383043354,1756827039705,-440.06,0.00013698,2]
[383043355,1756827039716,-608.59,0.00013698,2]
[383043356,1756827039725,-204.85,0.00013698,2]
[383043357,1756827039735,-584.97,0.00013698,2]
[383043358,1756827039745,-191.13,0.00013698,2]
[383043359,1756827039755,-256.22,0.00013698,2]
[383043360,1756827039764,-480.0,0.00013698,2]
[383043361,1756827039774,-480.0,0.00013698,2]
[383043362,1756827039783,-304.16,0.00013698,2]
[383043363,1756827039793,-480.0,0.00013698,2]
[383043364,1756827039802,-177.5,0.00013698,2]
[383043365,1756827039812,-480.0,0.00013698,2]
[383043366,1756827039822,-584.43,0.00013698,2]
[383043367,1756827039832,-480.0,0.00013698,2]
[383043368,1756827039841,-353.46,0.00013698,2]
[383043369,1756827039851,-198.71,0.00013698,2]
[383043370,1756827039861,-480.0,0.00013698,2]
[383043371,1756827039871,-480.0,0.00013698,2]
[383043372,1756827039882,-827.76,0.00013698,2]
[383043373,1756827039891,-408.31,0.00013698,2]
[383043374,1756827039901,-480.0,0.00013698,2]
[383043375,1756827039911,-200.11,0.00013698,2]
[383043376,1756827039921,-480.0,0.00013698,2]
[383043377,1756827039931,-277.48,0.00013698,2]
[383043378,1756827039941,-736.65,0.00013698,2]
[383043379,1756827039951,-480.0,0.00013698,2]
[383043380,1756827039962,-563.61,0.00013698,2]
[383043381,1756827039971,-480.0,0.00013698,2]
[383043382,1756827039981,-438.71,0.00013698,2]
[383043383,1756827039990,-480.0,0.00013698,2]
[383043384,1756827040000,-290.56,0.00013698,2]
[383043385,1756827040009,-577.95,0.00013698,2]
[383043387,1756827040019,-609.38,0.00013698,2]
[383043388,1756827040028,-840.81,0.00013698,2]
[383043389,1756827040038,-480.0,0.00013698,2]
[383043390,1756827040047,-480.0,0.00013698,2]
[383043392,1756827040057,-480.0,0.00013698,2]
[383043394,1756827040067,-480.0,0.00013698,2]
[383043396,1756827040077,-480.0,0.00013698,2]
[383043398,1756827040087,-298.43,0.00013698,2]
[383043400,1756827040096,-480.0,0.00013698,2]
[383043401,1756827040106,-480.0,0.00013698,2]
[383043402,1756827040115,-495.04,0.00013698,2]
[383043403,1756827040125,-443.47,0.00013698,2]
[383043404,1756827040135,-176.77,0.00013698,2]
[383043405,1756827040145,-578.01,0.00013698,2]
[383043406,1756827040154,-480.0,0.00013698,2]
[383043407,1756827040164,-480.0,0.00013698,2]
[383043408,1756827040174,-480.0,0.00013698,2]
[383043409,1756827040184,-480.0,0.00013698,2]
[383043410,1756827040194,-480.0,0.00013698,2]
[383043411,1756827040204,-480.0,0.00013698,2]
[383043412,1756827040214,-480.0,0.00013698,2]
[383043413,1756827040223,-480.0,0.00013698,2]
[383043414,1756827040233,-480.0,0.00013698,2]
[383043415,1756827040243,-480.0,0.00013698,2]
[383043416,1756827040252,-480.0,0.00013698,2]
[383043417,1756827040262,-480.0,0.00013698,2]
[383043418,1756827040272,-749.124413,0.00013699,2]
[383043419,1756827040282,-195.50137691,0.00013872,2]
[383043420,1756827040292,-471.15,0.00013972,2]
[383043421,1756827040302,-380.73,0.00013972,2]
[383043422,1756827040312,-422.3725381,0.00013972,2]
[383043423,1756827040322,-480.0,0.00013972,2]
[383043424,1756827040331,-480.0,0.00013972,2]
[383043425,1756827040341,-480.0,0.00013972,2]
[383043426,1756827040351,-827.76,0.00013972,2]
[383043427,1756827040364,-150.44,0.00013972,2]
[383043428,1756827040374,-480.0,0.00013972,2]
[383043429,1756827040384,-736.65,0.00013972,2]
[383043430,1756827040393,-165.15,0.00013972,2]
[383043431,1756827040405,-480.0,0.00013972,2]
[383043432,1756827040415,-480.0,0.00013972,2]
[383043433,1756827040424,-577.95,0.00013972,2]
[383043434,1756827040435,-840.81,0.00013972,2]
[383043435,1756827040445,-480.0,0.00013972,2]
[383043436,1756827040456,-556.89,0.00013972,2]
[383043437,1756827040466,-480.0,0.00013972,2]
[383043438,1756827040475,-480.0,0.00013972,2]
[383043439,1756827040485,-480.0,0.00013972,2]
[383043440,1756827040495,-480.0,0.00013972,2]
[383043441,1756827040504,-252.06,0.00013972,2]
[383043442,1756827040514,-480.0,0.00013972,2]
[383043443,1756827040524,-480.0,0.00013972,2]
[383043444,1756827040533,-480.0,0.00013972,2]
[383043445,1756827040543,-480.0,0.00013972,2]
[383043446,1756827040555,-480.0,0.00013972,2]
[383043447,1756827040565,-480.0,0.00013972,2]
[383043448,1756827040575,-480.0,0.00013972,2]
[383043449,1756827040586,-480.0,0.00013972,2]
[383043450,1756827040596,-480.0,0.00013972,2]
[383043451,1756827040605,-368.09900278,0.00013972,2]
[383043452,1756827040615,-500.0,0.00014046,2]
[383043453,1756827040625,-223.03857759,0.00014047,2]
[383043454,1756827040635,-530.22964562,0.00014147,2]
[383043455,1756827040646,-232.87008258,0.00014147,2]
[383043456,1756827040655,-11369.04596444,0.00014147,2]
[383043457,1756827040666,-217.47380718,0.00014147,2]
[383043458,1756827040676,-160.0,0.00014147,2]
[383043459,1756827040686,-160.0,0.00014147,2]
[383043460,1756827040696,-417.15472785,0.00014147,2]
[383043461,1756827040706,-846.21894513,0.00014147,2]
[383043462,1756827040716,-500.0,0.00014245,2]
[383043463,1756827040726,-480.0,0.00014246,2]
[383043464,1756827040736,-187.62065926,0.00014246,2]
[383043465,1756827040745,-480.0,0.00014246,2]
[383043466,1756827040755,-827.76,0.00014246,2]
[383043467,1756827040766,-480.0,0.00014246,2]
[383043468,1756827040775,-736.65,0.00014246,2]
[383043469,1756827040785,-480.0,0.00014246,2]
[383043470,1756827040795,-480.0,0.00014246,2]
[383043471,1756827040806,-577.95,0.00014246,2]
[383043472,1756827040816,-840.81,0.00014246,2]
[383043473,1756827040826,-372.62,0.00014246,2]
[383043474,1756827040836,-480.0,0.00014246,2]
[383043475,1756827040846,-480.0,0.00014246,2]
[383043476,1756827040856,-480.0,0.00014246,2]
[383043477,1756827040866,-480.0,0.00014246,2]
[383043478,1756827040876,-480.0,0.00014246,2]
[383043479,1756827040885,-480.0,0.00014246,2]
[383043480,1756827040895,-352.94,0.00014246,2]
[383043481,1756827040905,-480.0,0.00014246,2]
[383043482,1756827040915,-480.0,0.00014246,2]
[383043483,1756827040925,-495.49,0.00014246,2]
[383043484,1756827040935,-289.6401999,0.00014246,2]
[383043485,1756827040944,-480.0,0.00014246,2]
[383043486,1756827040954,-480.0,0.00014246,2]
[383043487,1756827040964,-209.17527081,0.0001432,2]
[383043488,1756827040974,-300.0,0.00014327,2]
[383043489,1756827040983,-300.0,0.00014327,2]
[383043490,1756827040993,-500.0,0.00014419,2]
[383043491,1756827041003,-500.0,0.00014419,2]
[383043492,1756827041013,-216.88110609,0.00014419,2]
[383043493,1756827041023,-500.0,0.00014419,2]
[383043494,1756827041032,-626.33654231,0.00014419,2]
[383043495,1756827041042,-5540.19919751,0.0001442,2]
[383043496,1756827041051,-6308.38620515,0.0001442,2]
[383043497,1756827041145,-327873.11251682,0.0001442,2]
[383043498,1756827041160,-35818.50127803,0.0001442,2]
[383043499,1756827041171,-172.997,0.0001442,2]
[383043500,1756827041180,-151.0,0.0001442,2]
[383043501,1756827041190,-151.0,0.0001442,2]
[383043502,1756827041200,-975.0,0.00014454,2]
[383043503,1756827041211,-632.0,0.00014454,2]
[383043504,1756827041220,-2153.0,0.00014454,2]
[383043505,1756827041230,-557.013,0.00014454,2]
[383043506,1756827041240,-423.672,0.00014454,2]
[383043507,1756827041250,-500.0,0.00014473,2]
[383043508,1756827041259,-500.0,0.00014473,2]
[383043509,1756827041269,-500.0,0.00014473,2]
[383043510,1756827041278,-500.0,0.00014473,2]
[383043511,1756827041288,-500.0,0.00014473,2]
[383043512,1756827041298,-500.0,0.00014473,2]
[383043514,1756827041308,-520.33824563,0.00014515,2]
[383043516,1756827041317,-480.0,0.0001452,2]
[383043518,1756827041327,-480.0,0.0001452,2]
[383043520,1756827041337,-827.76,0.0001452,2]
[383043522,1756827041347,-571.01321421,0.0001452,2]
[383043524,1756827041358,-736.65,0.0001452,2]
[383043526,1756827041368,-480.0,0.0001452,2]
[383043528,1756827041377,-480.0,0.0001452,2]
[383043530,1756827041387,-577.95,0.0001452,2]
[383043532,1756827041397,-840.81,0.0001452,2]
[383043534,1756827041407,-480.0,0.0001452,2]
[383043536,1756827041416,-480.0,0.0001452,2]
[383043538,1756827041425,-480.0,0.0001452,2]
[383043540,1756827041436,-480.0,0.0001452,2]
[383043542,1756827041445,-480.0,0.0001452,2]
[383043544,1756827041454,-480.0,0.0001452,2]
[383043546,1756827041464,-480.0,0.0001452,2]
[383043548,1756827041474,-409.38338452,0.0001452,2]
[383043550,1756827041483,-480.0,0.0001452,2]
[383043552,1756827041493,-500.0,0.00014691,2]
[383043554,1756827041502,-500.0,0.00014763,2]
[383043556,1756827041511,-500.0,0.00014763,2]
[383043558,1756827041520,-500.0,0.00014763,2]
[383043560,1756827041530,-500.0,0.00014763,2]
[383043562,1756827041540,-500.0,0.00014763,2]
[383043564,1756827041550,-500.0,0.00014763,2]
[383043566,1756827041560,-500.0,0.00014763,2]
[383043569,1756827041571,-500.0,0.00014763,2]
[383043570,1756827041580,-500.0,0.00014763,2]
[383043573,1756827041590,-500.0,0.00014763,2]
[383043574,1756827041600,-2618.2481025,0.00014763,2]
[383043577,1756827041610,-500.0,0.00014763,2]
[383043579,1756827041620,-151.0,0.00014763,2]
[383043581,1756827041630,-151.0,0.00014763,2]
[383043583,1756827041640,-151.0,0.00014763,2]
[383043585,1756827041650,-151.0,0.00014763,2]
[383043587,1756827041660,-151.0,0.00014763,2]
[383043589,1756827041671,-209.40437684,0.00014763,2]
[383043591,1756827041680,-151.0,0.00014763,2]
[383043593,1756827041690,-151.0,0.00014763,2]
[383043594,1756827041699,-151.0,0.00014763,2]
[383043596,1756827041710,-151.0,0.00014763,2]
[383043598,1756827041719,-151.0,0.00014763,2]
[383043599,1756827041729,-151.0,0.00014763,2]
[383043600,1756827041739,-480.0,0.00014794,2]
[383043601,1756827041749,-480.0,0.00014794,2]
[383043602,1756827041758,-827.76,0.00014794,2]
[383043603,1756827041767,-736.65,0.00014794,2]
[383043604,1756827041776,-480.0,0.00014794,2]
[383043605,1756827041786,-480.0,0.00014794,2]
[383043606,1756827041795,-577.95,0.00014794,2]
[383043607,1756827041805,-840.81,0.00014794,2]
[383043608,1756827041814,-480.0,0.00014794,2]
[383043609,1756827041823,-480.0,0.00014794,2]
[383043610,1756827041833,-480.0,0.00014794,2]
[383043611,1756827041843,-292.89,0.00014794,2]
[383043612,1756827041853,-480.0,0.00014794,2]
[383043613,1756827041863,-480.0,0.00014794,2]
[383043614,1756827041873,-480.0,0.00014794,2]
[383043615,1756827041882,-480.0,0.00014794,2]
[383043616,1756827041892,-151.0,0.00014794,2]
[383043617,1756827041901,-160.0,0.00015,2]
[383043618,1756827041911,-886.0,0.0001501,2]
[383043619,1756827041921,-1000.0,0.00015021,2]
[383043620,1756827041930,-500.0,0.00015021,2]
[383043621,1756827041939,-1000.0,0.00015021,2]
[383043622,1756827041949,-1000.0,0.00015021,2]
[383043623,1756827041959,-1000.0,0.00015021,2]
[383043624,1756827041968,-1000.0,0.00015021,2]
[383043625,1756827041977,-151.0,0.00015021,2]
[383043626,1756827041986,-480.0,0.00015068,2]
[383043627,1756827041996,-480.0,0.00015068,2]
[383043628,1756827042006,-827.76,0.00015068,2]
[383043629,1756827042015,-736.65,0.00015068,2]
[383043630,1756827042025,-480.0,0.00015068,2]
[383043631,1756827042034,-480.0,0.00015068,2]
[383043632,1756827042044,-577.95,0.00015068,2]
[383043633,1756827042054,-840.81,0.00015068,2]
[383043634,1756827042063,-480.0,0.00015068,2]
[383043635,1756827042073,-480.0,0.00015068,2]
[383043636,1756827042082,-480.0,0.00015068,2]
[383043637,1756827042091,-480.0,0.00015068,2]
[383043638,1756827042101,-480.0,0.00015068,2]
[383043639,1756827042111,-480.0,0.00015068,2]
[383043640,1756827042121,-480.0,0.00015068,2]
[383043641,1756827042130,-388.1674761,0.00015068,2]
[383043642,1756827042139,-388.1674761,0.00015068,2]
[383043643,1756827042149,-385.3420077,0.00015068,2]
[383043644,1756827042158,-480.0,0.00015342,2]
[383043645,1756827042169,-480.0,0.00015342,2]
[383043646,1756827042305,-827.76,0.00015342,2]
[383043647,1756827042315,-736.65,0.00015342,2]
[383043648,1756827042325,-480.0,0.00015342,2]
[383043649,1756827042335,-480.0,0.00015342,2]
[383043650,1756827042345,-577.95,0.00015342,2]
[383043651,1756827042357,-840.81,0.00015342,2]
[383043652,1756827042367,-480.0,0.00015342,2]
[383043653,1756827042377,-480.0,0.00015342,2]
[383043654,1756827042386,-480.0,0.00015342,2]
[383043655,1756827042397,-480.0,0.00015342,2]
[383043656,1756827042407,-480.0,0.00015342,2]
[383043657,1756827042417,-480.0,0.00015342,2]
[383043658,1756827042427,-480.0,0.00015342,2]
[383043659,1756827042438,-151.0,0.00015568,2]
[383043660,1756827042448,-1115.56510511,0.00015568,2]
[383043661,1756827042459,-1500.0,0.00015568,2]
[383043662,1756827042468,-1500.0,0.00015568,2]
[383043663,1756827042479,-1500.0,0.00015568,2]
[383043664,1756827042488,-1500.0,0.00015568,2]
[383043665,1756827042498,-151.0,0.00015616,2]
[383043666,1756827042508,-480.0,0.00015616,2]
[383043667,1756827042518,-480.0,0.00015616,2]
[383043668,1756827042528,-827.76,0.00015616,2]
[383043669,1756827042538,-736.65,0.00015616,2]
[383043670,1756827042549,-480.0,0.00015616,2]
[383043671,1756827042560,-570.04,0.00015616,2]
[383043672,1756827042570,-577.95,0.00015616,2]
[383043673,1756827042580,-840.81,0.00015616,2]
[383043674,1756827042591,-331.41063851,0.00015616,2]
[383043675,1756827042601,-480.0,0.00015616,2]
[383043676,1756827042611,-480.0,0.00015616,2]
[383043677,1756827042621,-480.0,0.00015616,2]
[383043678,1756827042631,-480.0,0.00015616,2]
[383043679,1756827042641,-480.0,0.00015616,2]
[383043680,1756827042651,-480.0,0.00015616,2]
[383043681,1756827042661,-1690.79438555,0.00015752,7]
[383043682,1756827042671,-480.0,0.0001589,2]
[383043683,1756827042682,-480.0,0.0001589,2]
[383043684,1756827042693,-827.76,0.0001589,2]
[383043685,1756827042703,-736.65,0.0001589,2]
[383043686,1756827042714,-480.0,0.0001589,2]
[383043687,1756827042724,-577.95,0.0001589,2]
[383043688,1756827042734,-840.81,0.0001589,2]
[383043689,1756827042744,-480.0,0.0001589,2]
[383043690,1756827042754,-480.0,0.0001589,2]
[383043691,1756827042763,-480.0,0.0001589,2]
[383043692,1756827042775,-480.0,0.0001589,2]
[383043693,1756827042784,-480.0,0.0001589,2]
[383043694,1756827042793,-248.8316305,0.0001589,2]
[383043695,1756827042805,-231.1683695,0.0001589,2]
[383043696,1756827042814,-150.0,0.00016,2]
[383043697,1756827042823,-2000.0,0.00016116,2]
[383043698,1756827042833,-2000.0,0.00016116,2]
[383043699,1756827042842,-2000.0,0.00016116,2]
[383043700,1756827042852,-2000.0,0.00016116,2]
[383043701,1756827042863,-581.52861496,0.00016164,2]
[383043702,1756827042872,-480.0,0.00016164,2]
[383043703,1756827042882,-827.76,0.00016164,2]
[383043704,1756827042892,-736.65,0.00016164,2]
[383043705,1756827042901,-480.0,0.00016164,2]
[383043706,1756827042911,-577.95,0.00016164,2]
[383043707,1756827042921,-840.81,0.00016164,2]
[383043708,1756827042930,-480.0,0.00016164,2]
[383043709,1756827042940,-480.0,0.00016164,2]
[383043710,1756827042950,-480.0,0.00016164,2]
[383043711,1756827042959,-480.0,0.00016164,2]
[383043712,1756827042969,-480.0,0.00016164,2]
[383043713,1756827042979,-480.0,0.00016164,2]
[383043714,1756827042988,-151.0,0.00016164,2]
[383043715,1756827042997,-160.0,0.00016287,2]
[383043716,1756827043007,-2000.0,0.000163,2]
[383043717,1756827043016,-12500.0,0.0001634,7]
[383043718,1756827043026,-151.0,0.0001634,2]
[383043719,1756827043036,-12500.0,0.00016349,7]
[383043720,1756827043046,-12500.0,0.00016358,7]
[383043721,1756827043056,-151.0,0.00016358,2]
[383043722,1756827043065,-500.0,0.00016438,2]
[383043723,1756827043074,-559.96951306,0.00016438,2]
[383043726,1756827043084,-258.53703248,0.00016438,2]
[383043727,1756827043093,-827.76,0.00016438,2]
[383043728,1756827043103,-736.65,0.00016438,2]